Cogmind - Beta 15 @@@ ROGUE MODE // 2025.05.09 @ 23:14:27 Player: FloorSandwich Result: Destroyed by G-47 Trooper with Particle Gun Performance ------------- Evolutions (1) 500 Regions Visited (5) 1000 Robots Destroyed (45) 225 Value Destroyed (990) 990 Prototype IDs (3) 60 Alien Tech Used (0) 0 Bonus (0) 0 TOTAL SCORE: 2775 Bonus ------- None Cogmind --------- Core Integrity 0/400 Matter 491/500 Energy 96/100 System Corruption 1% Temperature Cool (20) Movement Walking (260) Ox2 Location -8/Mines Parts ------- > --- POWER (2) -------- (None) > --- PROPULSION (2) --- Aluminum Leg Improved Aluminum Leg > --- UTILITY (3) ------ High-capacity Storage Unit High-capacity Matter Pod Core Shielding > --- WEAPON (2) ------- Particle Gun Light Cannon > --- INVENTORY (20) --- Light Ion Engine Light Nuclear Core Transport Network Coupler Hardened Medium Armor Plating EM Pulse Gun Beam Cannon Grenade Launcher Plasma Cutter Flail Peak State ------------ > --- POWER ------------ Light Ion Engine Light Ion Engine > --- PROPULSION ------- Wheel Armored Wheel > --- UTILITY ---------- High-capacity Storage Unit High-capacity Matter Pod Experimental Sensor Array > --- WEAPON ----------- Light Assault Rifle Shotgun > --- INVENTORY -------- Light Ion Engine Light Nuclear Core Transport Network Coupler Core Shielding EM Pulse Gun Particle Gun Beam Cannon Shotgun Light Cannon Grenade Launcher Plasma Cutter Flail [Rating: 20] Favorites ----------- Power Light Ion Engine Engine Light Ion Engine Power Core Light Nuclear Core Propulsion Wheel Leg Aluminum Leg Wheel Wheel Utility High-capacity Storage Unit Device Experimental Sensor Array Storage High-capacity Storage Unit Protection Core Shielding Weapon Light Assault Rifle Energy Gun Particle Gun Ballistic Gun Light Assault Rifle Ballistic Cannon Light Cannon Launcher Grenade Launcher Build | -11 -10 -9 -9 -9 -8 ------- Run | Yrd Mat Mat Min Exi Min Slots Evolved 2 | . . 2 . . . Power 1 | . . 1 . . . Propulsion . | . . . . . . Utility 1 | . . 1 . . . Weapon . | . . . . . . Parts Attached 37 | 2 13 14 2 1 5 Power 5 | . 2 2 1 . . Engine 4 | . 2 1 1 . . Core 1 | . . 1 . . . Reactor . | . . . . . . Propulsion 8 | . 3 3 . . 2 Treads . | . . . . . . Leg 2 | . . . . . 2 Wheel 6 | . 3 3 . . . Hover . | . . . . . . Flight . | . . . . . . Utility 9 | 1 3 3 1 1 . Device 2 | . . 1 1 . . Storage 4 | 1 2 . . 1 . Processor . | . . . . . . Hackware . | . . . . . . Protection 3 | . 1 2 . . . Artifact . | . . . . . . Weapon 15 | 1 5 6 . . 3 Energy Gun 3 | 1 1 . . . 1 Energy Cannon . | . . . . . . Ballistic Gun 8 | . 2 5 . . 1 Ballistic Cannon 1 | . . . . . 1 Launcher 3 | . 2 1 . . . Special Weapon . | . . . . . . Impact Weapon . | . . . . . . Slashing Weapon . | . . . . . . Piercing Weapon . | . . . . . . Special Melee Weapon . | . . . . . . Unidentified Prototypes 1 | . . . 1 . . Parts Lost 16 | . . 8 1 . 7 Power 3 | . . 1 . . 2 Propulsion 4 | . . 2 . . 2 Utility 4 | . . 2 1 . 1 Weapon 5 | . . 3 . . 2 Highest Loss Streak 7 | . . 7 1 . 7 To Critical Strikes . | . . . . . . Average Backups 11 | 4 8 13 12 12 9 Power 1 | 1 1 1 2 2 2 Propulsion . | 1 . . . . . Utility 1 | . 1 1 2 2 1 Weapon 6 | 1 5 8 7 7 4 Tool/Special . | . . . . . . Unused Backups 7 | . . . . . 7 Power 1 | . . . . . 1 Propulsion . | . . . . . . Utility 2 | . . . . . 2 Weapon 3 | . . . . . 3 Tool/Special 1 | . . . . . 1 Average Slot Usage (%) 85 | . 94 81 85 93 71 Engine 13 | . 13 10 17 22 . Leg 3 | . . . . . 17 Wheel 18 | . 27 17 22 22 1 Device 5 | . . 6 9 11 . Storage 14 | . 14 11 11 16 22 Protection 7 | . 9 14 3 . 9 Energy Gun 2 | . 6 . . . 9 Ballistic Gun 17 | . 16 21 22 22 2 Ballistic Cannon 1 | . . . . . 9 Peak Build Rating 20 | 2 8 12 19 20 20 Average Rating 12 | 1 7 9 17 19 9 On Entrance 9 | . 2 8 10 19 20 Naked Turns . | . . . . . . Heaviest Build 58 | 6 46 58 51 55 55 Greatest Support 23 | 3 20 22 22 22 23 Greatest Overweight (x) 15 | 1 2 5 2 2 15 Average Overweight (x) 2 | . 1 2 2 2 2 Largest Inventory Capacity 20 | 8 20 20 20 20 20 Average Capacity 19 | 6 16 20 20 20 20 Most Carried 17 | 6 16 17 14 13 12 Average Carried 11 | 4 8 13 12 12 9 Final Capacity 20 | 8 20 20 20 20 20 Final Carried 16 | 6 16 12 12 12 9 Class Distribution -------------------- 60% | Scavenger-Mutant 39% | Mutant Dominant Class ---------------- Mutant | -10/Materials Scavenger-Mutant | -9/Materials Scavenger-Mutant | -9/Mines Scavenger-Mutant | -9/Exiles Mutant | -8/Mines Resources | -11 -10 -9 -9 -9 -8 ----------- Run | Yrd Mat Mat Min Exi Min Matter Collected 1027 | 216 136 426 90 15 144 Remotely . | . . . . . . Salvage Created 1369 | . 212 715 161 . 281 Parts 94 | . 24 53 8 . 9 Haulers Intercepted 3 | . 2 1 . . . Recyclers Shooed . | . . . . . . Parts Field Recycled . | . . . . . . Retrieved Matter . | . . . . . . Parts Self-Destructed . | . . . . . . Prevented . | . . . . . . Kills | -11 -10 -9 -9 -9 -8 ------- Run | Yrd Mat Mat Min Exi Min Combat Hostiles Destroyed 34 | . 8 18 2 . 6 Guns 26 | . 7 12 2 . 5 Cannons 1 | . . . . . 1 AOE 7 | . 1 6 . . . Classes Destroyed 8 | . 3 4 . . 1 Worker 3 | . 2 . 1 . . Hauler 3 | . 2 1 . . . Recycler 3 | . . 1 1 . 1 Watcher 2 | . . 2 . . . Swarmer 14 | . 8 3 . . 3 Grunt 16 | . . 12 2 . 2 Duelist 1 | . . . . . 1 Sentry 3 | . . 3 . . . Best Kill Streak 9 | . 4 9 4 . 3 Combat Bots Only 8 | . 3 8 2 . 3 Max Kills in Single Turn 4 | . 2 4 1 . 2 Gunslinging 1 | . 1 . . . . Exploded 4 | . 1 4 . . . Melee . | . . . . . . Uniques/NPCs Destroyed . | . . . . . . Combat | -11 -10 -9 -9 -9 -8 -------- Run | Yrd Mat Mat Min Exi Min Hostile Shots Fired 226 | . 65 84 16 . 61 Missed 62 | . 20 18 3 . 21 Hits 164 | . 45 66 13 . 40 Melee 4 | . . . . . 4 Projectile 160 | . 45 66 13 . 36 AOE 1 | . . 1 . . . Critical Strikes 8 | . 2 1 1 . 4 Damage Taken 2173 | . 367 928 198 . 680 Core 494 | . 91 180 65 . 158 Absorbed by Shields . | . . . . . . Redirected to Shielding 38 | . 7 28 . . 3 Regen/Repaired (Parts) 70 | . . 70 . . . Core Remaining (%) 81 | 100 63 . . . . Volleys Fired 114 | . 31 51 11 . 21 Largest 2 | . 2 2 2 . 2 Hottest 95 | . 80 53 43 . 95 Shots Fired 207 | . 54 97 22 . 34 Gun 193 | . 48 92 22 . 31 Cannon 3 | . . . . . 3 Launcher 11 | . 6 5 . . . Special . | . . . . . . Kinetic 157 | . 12 92 22 . 31 Thermal 39 | . 36 . . . 3 Explosive 11 | . 6 5 . . . Electromagnetic . | . . . . . . Robot Hit Streak 17 | . 3 17 5 . 5 Robot Miss Streak 6 | . 6 3 5 . 4 Penetration Max . | . . . . . . Secondary Targets 5 | . 2 2 1 . . Max Gunslinging Chain 1 | . 1 1 1 . . Shots Hit Robots 123 | . 20 64 14 . 25 Core Hits 84 | . 15 49 8 . 12 Critical Kills . | . . . . . . Critical Parts Destroyed 1 | . . . 1 . . Critical Strikes 1 | . . . 1 . . Destroy 1 | . . . 1 . . Melee Attacks . | . . . . . . Impact . | . . . . . . Slashing . | . . . . . . Piercing . | . . . . . . Sneak Attacks . | . . . . . . Combat Hostiles . | . . . . . . Follow-up Attacks . | . . . . . . Damage Inflicted 1850 | . 325 994 201 . 330 Guns 1269 | . 173 598 201 . 297 Cannons 33 | . . . . . 33 Explosions 522 | . 144 378 . . . Melee . | . . . . . . Ramming 26 | . 8 18 . . . Kinetic 1136 | . 36 598 201 . 301 Thermal 166 | . 137 . . . 29 Explosive 522 | . 144 378 . . . Electromagnetic . | . . . . . . Impact . | . . . . . . Slashing . | . . . . . . Piercing . | . . . . . . Highest Corruption 1 | . . 1 1 1 1 Average Corruption 1 | . . 1 1 1 1 Corruption Purged . | . . . . . . Corruption Blocked . | . . . . . . Effects 18 | . . 7 5 2 4 Message Errors 4 | . . 1 1 2 . Matter Fused 7 | . . 4 2 . 1 Heat Flow Errors 2 | . . . 1 . 1 Energy Discharges 4 | . . 2 1 . 1 Data Loss (minor) 1 | . . . . . 1 Overload Shots . | . . . . . . Overflow Damage . | . . . . . . Projectiles . | . . . . . . Explosions . | . . . . . . Melee . | . . . . . . Knockbacks . | . . . . . . Impact . | . . . . . . Kinetic . | . . . . . . Secondary . | . . . . . . Self-Inflicted Damage 48 | . 17 31 . . . Shots 2 | . 1 1 . . . Rammed 2 | . 1 1 . . . Targets Rammed 2 | . 1 1 . . . Kicked . | . . . . . . Crushed . | . . . . . . Highest Temperature 204 | . 156 41 204 . 115 Average Temperature 38 | . 66 11 53 . 24 Received Heat Transfer 864 | . . 360 126 . 378 Siege Activations . | . . . . . . Martial Activations . | . . . . . . Shielding Activations . | . . . . . . Robots Disrupted . | . . . . . . Combat Hostiles . | . . . . . . Robots Corrupted . | . . . . . . Combat Hostiles . | . . . . . . Parts Fried . | . . . . . . Impact Corruptions . | . . . . . . Robots Melted . | . . . . . . Combat Hostiles . | . . . . . . Parts Melted . | . . . . . . Heat Transferred 399 | . 325 . . . 74 Parts Sabotaged . | . . . . . . Parts Stolen . | . . . . . . Parts Stripped . | . . . . . . Power Chain Reactions . | . . . . . . Alert | -11 -10 -9 -9 -9 -8 ------- Run | Yrd Mat Mat Min Exi Min Maximum Alert Level 1 | . . 1 . . . Low Security (%) 88 | 100 100 67 100 . 100 Level 1 11 | . . 32 . . . Level 2 . | . . . . . . Level 3 . | . . . . . . Level 4 . | . . . . . . Level 5 . | . . . . . . High Security . | . . . . . . Max Security . | . . . . . . Peak Influence 284 | . 99 284 99 . 70 Initial 99 | . . . 99 . . Average 48 | . 33 96 26 . 10 Influence Increases 1011 | . 281 525 60 . 145 Destroy 0b10 Robot/C 680 | . 160 360 40 . 120 Destroy 0b10 Robot/NC 55 | . 20 20 10 . 5 Destroy Leader 160 | . 34 96 10 . 20 Successful Hack 35 | . 28 7 . . . Destroy Structure 66 | . 39 27 . . . Lose Combat Pursuer 15 | . . 15 . . . Influence Decreases 1011 | . 281 271 314 . 145 Entered New Map 155 | . . . 155 . . Time Decay 776 | . 281 231 149 . 115 Lost Part 80 | . . 40 10 . 30 Squads Dispatched 4 | . . 4 . . . Investigation 2 | . . 2 . . . Extermination . | . . . . . . Reinforcement 2 | . . 2 . . . Assault . | . . . . . . Garrison . | . . . . . . Intercept . | . . . . . . Searches Triggered . | . . . . . . Construction Impeded . | . . . . . . Haulers Reinforced . | . . . . . . Active Scanning Responses . | . . . . . . Cargo Convoy Interrupts . | . . . . . . Stealth | -11 -10 -9 -9 -9 -8 --------- Run | Yrd Mat Mat Min Exi Min Distress Signals 3 | . 1 2 . . . Communications Jammed . | . . . . . . Distress Signals . | . . . . . . Times Spotted 52 | . 15 25 2 . 10 Peak Tracking Total 8 | . 4 8 2 . 4 Tactical Retreats 1 | . . 1 . . . Traps | -11 -10 -9 -9 -9 -8 ------- Run | Yrd Mat Mat Min Exi Min Traps Triggered . | . . . . . . Indirectly . | . . . . . . Trap Hack Attempts . | . . . . . . Triggered . | . . . . . . Disarmed . | . . . . . . Reprogrammed . | . . . . . . Reused . | . . . . . . Traps Extracted . | . . . . . . Installed . | . . . . . . Triggered . | . . . . . . Machines | -11 -10 -9 -9 -9 -8 ---------- Run | Yrd Mat Mat Min Exi Min Machines Disabled . | . . . . . . Max in Single Turn . | . . . . . . Machines Repaired . | . . . . . . Machines Dismantled . | . . . . . . Machines Sabotaged . | . . . . . . Overloaded Fab Kills . | . . . . . . Hacking | -11 -10 -9 -9 -9 -8 --------- Run | Yrd Mat Mat Min Exi Min Machines Accessed 14 | . 6 4 . 4 . Terminals 8 | . 5 3 . . . Fabricators . | . . . . . . Repair Stations 1 | . . 1 . . . Recycling Units 1 | . 1 . . . . Scanalyzers . | . . . . . . Garrison Access . | . . . . . . Total Hacks 86 | . 22 15 . 49 . Successful 67 | . 12 6 . 49 . Failed 19 | . 10 9 . . . Catastrophic 3 | . 2 1 . . . Database Lockouts . | . . . . . . Manual . | . . . . . . Terminals 30 | . 21 9 . . . Fabricators . | . . . . . . Repair Stations 6 | . . 6 . . . Recycling Units 1 | . 1 . . . . Scanalyzers . | . . . . . . Garrison Access . | . . . . . . Terminal Hacks 62 | . 11 2 . 49 . Record 51 | . 2 . . 49 . Robot Analysis 1 | . 1 . . . . Prototype ID Bank 1 | . 1 . . . . Emergency Access Points 2 | . 1 1 . . . Alert Level 1 | . 1 . . . . Locate Traps 1 | . 1 . . . . Dispatch Records 2 | . 1 1 . . . Transport Status 1 | . 1 . . . . Hauler Manifests 1 | . 1 . . . . Zone Layout 1 | . 1 . . . . Fabricator Hacks . | . . . . . . Repair Station Hacks 4 | . . 4 . . . Scan Component 2 | . . 2 . . . Repair 2 | . . 2 . . . Recycling Unit Hacks 1 | . 1 . . . . Recycle Component 1 | . 1 . . . . Scanalyzer . | . . . . . . Garrison Access Hacks . | . . . . . . Unauthorized Hacks . | . . . . . . Terminals . | . . . . . . Fabricators . | . . . . . . Repair Stations . | . . . . . . Recycling Units . | . . . . . . Scanalyzers . | . . . . . . Garrison Access . | . . . . . . Data Cores Recovered . | . . . . . . Used . | . . . . . . Hacking Detections 8 | . 4 4 . . . Full Trace Events 5 | . 3 2 . . . Feedback Events 1 | . . 1 . . . Corruption 1 | . . 1 . . . Feedback Blocked . | . . . . . . Robot Schematics Acquired . | . . . . . . Robots Built . | . . . . . . Authchips . | . . . . . . Time . | . . . . . . Total Robot Build Rating . | . . . . . . Part Schematics Acquired . | . . . . . . Parts Built . | . . . . . . Authchips . | . . . . . . Time . | . . . . . . Total Part Build Rating . | . . . . . . Parts Repaired 2 | . . 2 . . . Time 64 | . . 64 . . . Parts Recycled 1 | . 1 . . . . Recycled Matter . | . . . . . . Retrieved Matter . | . . . . . . Retrieved Components . | . . . . . . Parts Scanalyzed . | . . . . . . Part Schematics Acquired . | . . . . . . Parts Damaged . | . . . . . . Bothacking | -11 -10 -9 -9 -9 -8 ------------ Run | Yrd Mat Mat Min Exi Min Used RIF Installer . | . . . . . . Robots Hacked . | . . . . . . Non-combat . | . . . . . . Combat . | . . . . . . Robot Hacks Applied . | . . . . . . Relay Couplers Released . | . . . . . . Fabnet Peak Effective % . | . . . . . . Robots Rewired . | . . . . . . Allies Hacked . | . . . . . . Hacks Repelled . | . . . . . . Allies | -11 -10 -9 -9 -9 -8 -------- Run | Yrd Mat Mat Min Exi Min Total Allies . | . . . . . . Largest Group . | . . . . . . Highest-Rated Group . | . . . . . . Highest-Rated Ally . | . . . . . . Total Orders . | . . . . . . Ally Attacks . | . . . . . . Total Damage . | . . . . . . Kills . | . . . . . . Allies Corrupted . | . . . . . . Allies Melted . | . . . . . . Intel | -11 -10 -9 -9 -9 -8 ------- Run | Yrd Mat Mat Min Exi Min Active Infowar (turns) 2178 | . . 670 463 1031 14 Sensors 2178 | . . 670 463 1031 14 Robot Analysis Total 1 | . 1 . . . . Derelict Logs Recovered . | . . . . . . Drone Launches . | . . . . . . Drone Recoveries . | . . . . . . Exploration | -11 -10 -9 -9 -9 -8 ------------- Run | Yrd Mat Mat Min Exi Min Turns Passed 4262 | 57 806 1107 543 1031 718 Spaces Moved 3101 | 68 688 778 440 895 232 Core 75 | 68 . . . . 7 Treads . | . . . . . . Legs 223 | . . . . . 223 Wheels 2803 | . 688 778 440 895 2 Hover . | . . . . . . Flight . | . . . . . . Fastest Speed 50 | 50 80 110 115 115 115 Average Speed 124 | 71 98 121 115 115 283 Slowest Speed 800 | 100 110 155 115 115 800 Overloaded Moves . | . . . . . . Propulsion Burnouts . | . . . . . . Robots Hopped . | . . . . . . Potential Cave-ins . | . . . . . . Cave-ins Triggered . | . . . . . . Exploration Rate (%) 48 | 3 80 32 26 93 59 Regions Visited 5 Branch Regions 3 Pre-discovered Areas 1 | . . . . 1 . Known Exits Taken . | . . . . . . Unknown Exits Taken 5 | 1 1 1 1 1 . Scrap Searched 1 | . . . . . 1 Spaces Dug 25 | . 17 8 . . . Terrain Destroyed 84 | . 52 32 . . . Melee . | . . . . . . Projectile . | . . . . . . AOE 84 | . 52 32 . . . Terrain Rammed . | . . . . . . Walls Destroyed . | . . . . . . Machines Disabled . | . . . . . . Actions | -11 -10 -9 -9 -9 -8 --------- Run | Yrd Mat Mat Min Exi Min Total 3313 | 75 765 857 457 896 263 Wait . | . . . . . . Move 3096 | 67 687 777 439 894 232 Hop . | . . . . . . Pick Up 45 | 6 22 10 3 1 3 Fast Attach 2 | 2 . . . . . Attach 34 | . 12 12 3 1 6 Detach 3 | . 3 . . . . Swap 5 | . 3 2 . . . Drop 12 | . 6 4 1 . 1 Fire 114 | . 31 51 11 . 21 Melee . | . . . . . . Ram 2 | . 1 1 . . . Kick . | . . . . . . Crush . | . . . . . . Escape Stasis . | . . . . . . Rewire . | . . . . . . Trap . | . . . . . . Miscellaneous . | . . . . . . Route ------- -11/Scrapyard -10/Materials (discovered 3 exits: *Mat x2 / [*Min]) -9/Materials -9/Mines -9/Exiles (discovered 2 exits: [*Min x2]) -8/Mines (discovered 1 exit: [*Mat]) History --------- Turn | Location | Event 7 | -11/Scrapyard | Discovered new exit (range 15) 58 | -11/Scrapyard | Entered Materials 156 | -10/Materials | Discovered new exit (range 9) 308 | -10/Materials | Build established: Mutant 461 | -10/Materials | Discovered new exit (range 8) 807 | -10/Materials | Discovered new exit (range 5) 864 | -10/Materials | Entered another Materials area 864 | -9/Materials | Evolved 2 slots: Power x1, Utility x1 942 | -9/Materials | Build established: Scavenger-Mutant 1571 | -9/Materials | Lost 7 parts (1p2n1u3w) 1574 | -9/Materials | Destroyed 8 combat bots 1624 | -9/Materials | Repaired Core Shielding 1673 | -9/Materials | Repaired Lgt. Nuclear Core 1755 | -9/Materials | Discovered new exit (range 16) 1971 | -9/Materials | Entered Mines 1983 | -9/Mines | Deemed a non-threat by the Exiles lab entrance 1984 | -9/Mines | Discovered new exit (range 5) 2047 | -9/Mines | Found a damaged Exp. Sensor Array with a note attached 2050 | -9/Mines | Found Prototype Device 2051 | -9/Mines | Identified Exp. Sensor Array 2140 | -9/Mines | Core integrity fell below 50% 2514 | -9/Mines | Entered Exiles 2544 | -9/Exiles | Discovered new exit (range 15) 2596 | -9/Exiles | Met 8R-AWN 2627 | -9/Exiles | Met EX-HEX 2681 | -9/Exiles | Met EX-DEC 2749 | -9/Exiles | Visited The Gauntlet 2912 | -9/Exiles | Learned location of Zion (-6) 2966 | -9/Exiles | Discovered new exit (range 14) 3139 | -9/Exiles | Met EX-BIN 3545 | -9/Exiles | Entered Mines 3559 | -8/Mines | Core integrity fell below 20% 3611 | -8/Mines | Lost 7 parts (2p2n1u2w) 3855 | -8/Mines | Build established: Mutant 4234 | -8/Mines | Discovered new exit (range 11) 4263 | -8/Mines | Destroyed by G-47 Trooper with Particle Gun Last Messages --------------- Acquired 4 matter. Acquired Imp. Aluminum Leg. Acquired 10 matter. Searching scrap... Found Hrd. Medium Armor Plating. Found Assault Cannon. Found 33 Matter. Found Imp. Signal Interpreter. Found 67 Matter. Acquired Hrd. Medium Armor Plating. System corrupted: Energy discharge (-26). K-01 Serf collects debris. S-10 Pest destroyed. Acquired 8 matter. K-01 Serf collects debris. System corrupted: Matter fused (-9). System corrupted: Component data lost. System corrupted: Heat flow error (+143). EXIT=FOUND Critical hit (Burn: +37). Map ----- +----------------------------------------------------+ | ### """ #????????????????????????????? | | ##?## #???????????????????????????? | | # ##???#### #???????????????????????????? | | ## ##????????# ##???????????????????????????? | | ## ##??????????# ##????????????????????????????? | | #????????????###?????????????????????????????? | | ## #????????????????????????????????????????????? | | ## #?????###????????????????????????????????????? | | #???## ##???????????????????????????????????? | | ## #??## #???????????????????????????????????? | | ?# #?## #???????????????????????????????????? | | ?# ### #????????????????????????????????????? | | ?# ## #?????????????????????????????????????? | | ## #?????????????????????????????????????? | | # ########??????????????????????????????? | | #??????????????????????????????? | | #????????????####??????????????? | | ###### #???????????? ##?????????????? | | #???# ##??????????t #?????????????? | | # #??# #????????? #?????????????? | | #### #??## ##???????# #?????????????? | | ???# ##???# ##????## ##????????????? | | ???# ####????# ##### ###??????????? | | ??# ########## #??????????? | | ?# ## #?????????? | | ?# ## @ #?????????? | | ?# ######### < #??????????? | | ?## #???# #???????????? | | ??## ##???# k g ?????????? | | ???##?????# ##### gg ?????????? | | ????????????????## ## ### ## #??????????? | | ?????????????????############??? ##?????????????? | | ?????????????????????????????????##??????????????? | | ?????????????????????????????????????????????????? | | ?????????????????????????????????????????????????? | | ?????????????????????????????????????????????????? | | ?????????????????????????????????????????????????? | | ?????????????????????????????????????????????????? | | ?????????????????????????????????????????????????? | | ?????????????????????????????????????????????????? | | ?????????????????????????????????????????????????? | | ?????????????????????????????????????????????????? | | ?????????????????????????????????????????????????? | | ?????????????????????????????????????????????????? | | ?????????????????????????????????????????????????? | | | | | | | | | | | +----------------------------------------------------+ Best States ------------- Heat Dissipation 28 Energy Generation 19 Energy Capacity 185 Matter Stores 500 Matter Capacity 500 Sight Range 16 Robot Scan Range 20 Terrain Scan Density 10 Armor Coverage 300 Core Shielding 20 Evasion (%) 50 Item Schematics ----------------- None Robot Schematics ------------------ None Fabricated ------------ Nothing Repaired ---------- Core Shielding | 30% | -9/Materials Lgt. Nuclear Core | 30% | -9/Materials Alien Tech Used ----------------- None Achievements -------------- Librarian Challenges ------------ None Game ------ Seed MetafieldPortableLance Manual? 0 Play Time 00:28:33 Cumulative 5.5 hours Start 2025.05.09 @ 20:40:05 End 2025.05.09 @ 23:14:27 Sessions 3 Manual Loads 0 Difficulty Rogue Special Mode None Game No. 24 Rogue 24 Adventurer 0 Explorer 0 Win Type - Total 0 Types 0/0/0/0/0/0/0/0/0/0 Lore% 6 Gallery% 11 Achievement% 10 Wizard Run 0 Options --------- Layout 0 ASCII 0 Keyboard 0 Movement Arrows Keybinds 0 Fullscreen 1 Font 24/Smallcaps Map View 56x25 Zoom Use 99% Tactical HUD 0 Map Filters NONE Filters NONE Steam 1 RUN: 9a0617ea-a18a-459c-8e40-8cf190dd7b97